Cogmind - Beta 12 @@@ ROGUE MODE // 2023.05.02 @ 23:34:15 Player: MoonDog Result: Self-destructed Performance ------------- Evolutions (1) 500 Regions Visited (2) 400 Robots Destroyed (15) 75 Value Destroyed (239) 239 Prototype IDs (0) 0 Alien Tech Used (0) 0 Bonus (-3) -3 TOTAL SCORE: 1211 Bonus ------- Friendly Fire -3 Cogmind --------- Core Integrity 305/400 Matter 210/300 Energy 250/250 System Corruption 0% Temperature Warm (169) Movement Hovering (116) Ox1 Location -9/Materials Parts ------- > --- POWER (1) -------- Ion Engine > --- PROPULSION (3) --- Improved Hover Unit Improved Hover Unit > --- UTILITY (3) ------ Small Storage Unit Light Armor Plating > --- WEAPON (2) ------- Spread Laser Improved Light Cannon > --- INVENTORY (8) ---- Improved Hover Unit Flight Unit Flight Unit Flight Unit Flight Unit Peak State ------------ > --- POWER ------------ Ion Engine > --- PROPULSION ------- Improved Hover Unit Improved Hover Unit Improved Hover Unit > --- UTILITY ---------- Small Storage Unit Light Armor Plating > --- WEAPON ----------- Spread Laser Improved Light Cannon > --- INVENTORY -------- Improved Hover Unit Flight Unit Flight Unit Flight Unit Flight Unit Light Assault Rifle [Rating: 13] Favorites ----------- Power Ion Engine Engine Ion Engine Propulsion Improved Hover Unit Wheel Wheel Hover Unit Improved Hover Unit Flight Unit Flight Unit Utility Light Armor Plating Device Cooling System Storage Small Storage Unit Processor Signal Interpreter Protection Light Armor Plating Weapon Light Assault Rifle Energy Gun Small Laser Ballistic Gun Light Assault Rifle Ballistic Cannon Improved Light Cannon Launcher Grenade Launcher Build | -11 -10 -9 ------- Run | Jun Mat Mat Slots Evolved 2 | . . 2 Power . | . . . Propulsion 1 | . . 1 Utility 1 | . . 1 Weapon . | . . . Parts Attached 22 | 3 15 4 Power 2 | . 2 . Engine 2 | . 2 . Core . | . . . Reactor . | . . . Propulsion 9 | 2 6 1 Treads . | . . . Leg . | . . . Wheel 2 | 2 . . Hover 3 | . 2 1 Flight 4 | . 4 . Utility 4 | . 4 . Device 1 | . 1 . Storage 1 | . 1 . Processor 1 | . 1 . Hackware . | . . . Protection 1 | . 1 . Artifact . | . . . Weapon 7 | 1 3 3 Energy Gun 3 | 1 1 1 Energy Cannon . | . . . Ballistic Gun 2 | . 1 1 Ballistic Cannon 1 | . . 1 Launcher 1 | . 1 . Special Weapon . | . . . Impact Weapon . | . . . Slashing Weapon . | . . . Piercing Weapon . | . . . Special Melee Weapon . | . . . Unidentified Prototypes . | . . . Parts Lost 4 | . 3 1 Power 1 | . 1 . Propulsion 2 | . 1 1 Utility . | . . . Weapon 1 | . 1 . Highest Loss Streak 3 | . 3 1 To Critical Strikes . | . . . Average Slot Usage (%) 74 | . 68 83 Engine 9 | . 7 11 Wheel 5 | . 8 . Hover 17 | . 7 32 Flight 6 | . 10 . Storage 4 | . . 11 Processor 5 | . 9 . Protection 6 | . 3 11 Energy Gun 6 | . 6 7 Ballistic Gun 6 | . 5 7 Ballistic Cannon 1 | . . 2 Launcher 4 | . 7 . Naked Turns . | . . . Heaviest Build 20 | 1 15 20 Greatest Support 21 | 3 14 21 Greatest Overweight (x) 1 | . 1 1 Average Overweight (x) . | . . . Largest Inventory Capacity 8 | 5 8 8 Average Capacity 6 | 5 5 8 Most Carried 6 | 1 6 6 Average Carried 3 | . 3 4 Final Capacity 8 | 5 8 8 Final Carried 5 | 1 5 5 Class Distribution -------------------- 100% | Mutant Dominant Class ---------------- Mutant | -10/Materials Mutant | -9/Materials Resources | -11 -10 -9 ----------- Run | Jun Mat Mat Matter Collected 426 | 141 219 66 Remotely . | . . . Salvage Created 235 | 39 139 57 Parts 24 | 4 14 6 Haulers Intercepted . | . . . Recyclers Shooed . | . . . Parts Field Recycled . | . . . Retrieved Matter . | . . . Parts Self-Destructed . | . . . Prevented . | . . . Kills | -11 -10 -9 ------- Run | Jun Mat Mat Combat Hostiles Destroyed 13 | . 9 4 Guns 6 | . 2 4 AOE 7 | . 7 . Classes Destroyed 3 | 1 2 . Tunneler 2 | 2 . . Swarmer 10 | . 6 4 Grunt 3 | . 3 . Best Kill Streak 6 | 1 6 4 Combat Bots Only 6 | . 6 4 Max Kills in Single Turn 3 | 1 3 1 Gunslinging . | . . . Exploded 3 | . 3 . Melee . | . . . Uniques/NPCs Destroyed . | . . . Combat | -11 -10 -9 -------- Run | Jun Mat Mat Damage Taken 765 | . 394 371 Core 247 | . 152 95 Absorbed by Shields . | . . . Core Remaining (%) 69 | 100 39 . Volleys Fired 49 | 2 26 21 Largest 2 | 1 2 2 Hottest 104 | 40 60 104 Shots Fired 72 | 2 34 36 Gun 59 | 2 27 30 Cannon 6 | . . 6 Launcher 7 | . 7 . Special . | . . . Kinetic 28 | . 8 20 Thermal 37 | 2 19 16 Explosive 7 | . 7 . Electromagnetic . | . . . Robot Hit Streak 10 | 2 10 6 Robot Miss Streak 11 | . 2 11 Penetration Max . | . . . Secondary Targets 3 | . . 3 Max Gunslinging Chain 1 | . . 1 Shots Hit Robots 45 | 2 21 22 Core Hits 29 | 2 12 15 Critical Kills . | . . . Critical Parts Destroyed . | . . . Critical Strikes . | . . . Melee Attacks . | . . . Impact . | . . . Slashing . | . . . Piercing . | . . . Sneak Attacks . | . . . Combat Hostiles . | . . . Follow-up Attacks . | . . . Damage Inflicted 936 | 23 618 295 Guns 447 | 23 194 230 Cannons 65 | . . 65 Explosions 424 | . 424 . Melee . | . . . Ramming . | . . . Kinetic 164 | . 48 116 Thermal 348 | 23 146 179 Explosive 424 | . 424 . Electromagnetic . | . . . Impact . | . . . Slashing . | . . . Piercing . | . . . Highest Corruption . | . . . Average Corruption . | . . . Corruption Purged . | . . . Corruption Blocked . | . . . Overload Shots . | . . . Overflow Damage . | . . . Projectiles . | . . . Explosions . | . . . Melee . | . . . Knockbacks . | . . . Impact . | . . . Kinetic . | . . . Secondary . | . . . Self-Inflicted Damage 40 | . 40 . Shots 2 | . 2 . Rammed . | . . . Targets Rammed . | . . . Kicked . | . . . Crushed . | . . . Highest Temperature 298 | . 122 298 Average Temperature 124 | . 43 165 Received Heat Transfer 282 | . 186 96 Effects 2 | . . 2 Interference 2 | . . 2 Siege Activations . | . . . Robots Corrupted . | . . . Combat Hostiles . | . . . Parts Fried . | . . . Impact Corruptions . | . . . Robots Melted . | . . . Combat Hostiles . | . . . Parts Melted 1 | . 1 . Heat Transferred 600 | 50 325 225 Parts Sabotaged . | . . . Parts Stolen . | . . . Parts Stripped . | . . . Power Chain Reactions . | . . . Missiles Intercepted . | . . . Alert | -11 -10 -9 ------- Run | Jun Mat Mat Peak Influence 301 | 10 301 277 Initial 126 | . 6 126 Average 180 | 4 216 178 Maximum Alert Level 1 | . 1 1 Low Security (%) 46 | 100 26 60 Level 1 53 | . 73 39 Level 2 . | . . . Level 3 . | . . . Level 4 . | . . . Level 5 . | . . . High Security . | . . . Max Security . | . . . Squads Dispatched 3 | . 2 1 Investigation 2 | . 2 . Extermination . | . . . Reinforcement 1 | . . 1 Assault . | . . . Garrison . | . . . Intercept . | . . . Searches Triggered . | . . . Construction Impeded . | . . . Haulers Reinforced . | . . . Active Scanning Responses . | . . . Cargo Convoy Interrupts . | . . . Stealth | -11 -10 -9 --------- Run | Jun Mat Mat Distress Signals 1 | . 1 . Communications Jammed . | . . . Distress Signals . | . . . Times Spotted 29 | . 12 17 Peak Tracking Total 9 | . 7 9 Tactical Retreats 1 | . . 1 Traps | -11 -10 -9 ------- Run | Jun Mat Mat Traps Triggered 2 | . 2 . Indirectly . | . . . Trap Hack Attempts . | . . . Triggered . | . . . Disarmed . | . . . Reprogrammed . | . . . Reused . | . . . Traps Extracted . | . . . Installed . | . . . Triggered . | . . . Machines | -11 -10 -9 ---------- Run | Jun Mat Mat Machines Disabled 1 | . . 1 Max in Single Turn 1 | . . 1 Machines Repaired . | . . . Machines Sabotaged . | . . . Overloaded Fab Kills . | . . . Hacking | -11 -10 -9 --------- Run | Jun Mat Mat Machines Accessed 6 | . 5 1 Terminals 5 | . 5 . Fabricators . | . . . Repair Stations . | . . . Recycling Units . | . . . Scanalyzers 1 | . . 1 Garrison Access . | . . . Total Hacks 19 | . 16 3 Successful 12 | . 9 3 Failed 7 | . 7 . Catastrophic 3 | . 3 . Database Lockouts . | . . . Manual 12 | . 12 . Terminals 16 | . 16 . Fabricators . | . . . Repair Stations . | . . . Recycling Units . | . . . Scanalyzers 3 | . . 3 Garrison Access . | . . . Terminal Hacks 4 | . 4 . Recall Investigation 1 | . 1 . Hauler Manifests 1 | . 1 . Registered Components 1 | . 1 . Zone Layout 1 | . 1 . Fabricator Hacks . | . . . Repair Station Hacks . | . . . Recycling Unit Hacks . | . . . Scanalyzer 3 | . . 3 Insert Component 1 | . . 1 Analyze 2 | . . 2 Garrison Access Hacks . | . . . Unauthorized Hacks 5 | . 5 . Terminals 5 | . 5 . Assimilate 1 | . 1 . Botnet 3 | . 3 . Operators 1 | . 1 . Fabricators . | . . . Repair Stations . | . . . Recycling Units . | . . . Scanalyzers . | . . . Garrison Access . | . . . Data Cores Recovered . | . . . Used . | . . . Hacking Detections 5 | . 4 1 Full Trace Events . | . . . Feedback Events . | . . . Feedback Blocked . | . . . Robot Schematics Acquired . | . . . Robots Built . | . . . Authchips . | . . . Time . | . . . Total Robot Build Rating . | . . . Part Schematics Acquired 1 | . . 1 Parts Built . | . . . Authchips . | . . . Time . | . . . Total Part Build Rating . | . . . Parts Repaired . | . . . Time . | . . . Parts Recycled . | . . . Recycled Matter . | . . . Retrieved Matter . | . . . Retrieved Components . | . . . Parts Scanalyzed 1 | . . 1 Part Schematics Acquired 1 | . . 1 Parts Damaged . | . . . Bothacking | -11 -10 -9 ------------ Run | Jun Mat Mat Used RIF Installer . | . . . Robots Hacked . | . . . Non-combat . | . . . Combat . | . . . Robot Hacks Applied . | . . . Relay Couplers Released . | . . . Fabnet Peak Effective % . | . . . Robots Rewired . | . . . Allies Hacked . | . . . Hacks Repelled . | . . . Allies | -11 -10 -9 -------- Run | Jun Mat Mat Total Allies 1 | . 1 . Largest Group 1 | . 1 1 Highest-Rated Group 10 | . 10 9 Highest-Rated Ally 10 | . 10 9 Total Orders . | . . . Ally Attacks . | . . . Total Damage . | . . . Kills . | . . . Allies Corrupted . | . . . Allies Melted . | . . . Intel | -11 -10 -9 ------- Run | Jun Mat Mat Robot Analysis Total . | . . . Derelict Logs Recovered . | . . . Drone Launches . | . . . Drone Recoveries . | . . . Exploration | -11 -10 -9 ------------- Run | Jun Mat Mat Turns Passed 579 | 65 322 192 Spaces Moved 683 | 52 402 229 Core 205 | 52 153 . Treads . | . . . Legs . | . . . Wheels . | . . . Hover 367 | . 138 229 Flight 111 | . 111 . Fastest Speed 37 | 50 37 52 Average Speed 50 | 50 49 53 Slowest Speed 120 | 50 120 116 Overloaded Moves . | . . . Propulsion Burnouts . | . . . Robots Hopped 2 | . 2 . Cave-ins Triggered . | . . . Exploration Rate (%) 28 | 3 61 21 Regions Visited 2 Branch Regions . Pre-discovered Areas . | . . . Known Exits Taken 1 | . 1 . Unknown Exits Taken 1 | 1 . . Scrap Searched . | . . . Spaces Dug 7 | . 7 . Terrain Destroyed 46 | . 45 1 Melee . | . . . Projectile 1 | . . 1 AOE 45 | . 45 . Terrain Rammed . | . . . Walls Destroyed . | . . . Machines Disabled . | . . . Actions | -11 -10 -9 --------- Run | Jun Mat Mat Total 848 | 86 496 266 Wait 67 | 29 30 8 Move 677 | 51 397 229 Hop 2 | . 2 . Pick Up 11 | 1 9 1 Fast Attach 16 | 3 11 2 Attach 6 | . 4 2 Detach 10 | . 8 2 Swap . | . . . Drop 10 | . 9 1 Fire 49 | 2 26 21 Melee . | . . . Ram . | . . . Kick . | . . . Crush . | . . . Escape Stasis . | . . . Rewire . | . . . Trap . | . . . Miscellaneous . | . . . Route ------- -11/Junkyard -10/Materials (discovered 3 exits: *Mat x2 / [Min]) -9/Materials (discovered 2 exits: [*Mat] / [*Min]) History --------- Turn | Location | Event 13 | -11/Junkyard | Discovered new exit (range 16) 66 | -11/Junkyard | Entered Materials 123 | -10/Materials | Discovered new exit (range 10) 123 | -10/Materials | Discovered new exit (range 18) 228 | -10/Materials | Discovered new exit (range 11) 272 | -10/Materials | Core integrity fell below 50% 274 | -10/Materials | Lost 3 parts (1p1n1w) 338 | -10/Materials | Build established: Mutant 346 | -10/Materials | Identified exit to Materials 388 | -10/Materials | Entered another Materials area 388 | -9/Materials | Accompanied by 1 ally 388 | -9/Materials | Evolved 2 slots: Propulsion x1, Utility x1 437 | -9/Materials | Discovered new exit (range 9) 567 | -9/Materials | Discovered new exit (range 14) 580 | -9/Materials | Self-destructed Last Messages --------------- 00519_ Acquired 17 matter. 00521_ Acquired 12 matter. 00523_ Acquired Flight Unit. 00524_ Acquired 12 matter. 00530_ Acquired Imp. Light Cannon. 00532_ Dropped Lgt. Assault Rifle. 00538_ Acquired 4 matter. 00545_ Technician 1a reveals location of Explosive Trap. 00545_ Electrolysis Chamber disabled. 00554_ Technician 1a reveals location of Explosive Trap. 00554_ O-16 Technician: "IFF HANDSHAKE FAILED. SECURING TERMINAL." 00556_ Technician 1a reveals location of Explosive Trap. 00562_ Overheating: System interference. 00562_ Imp. Light Cannon temporarily disabled. 00564_ ALERT: Hostiles spotted, dispatching reinforcements to Terminal M008. 00567_ EXIT=FOUND 00575_ Technician 1a destroyed. 00575_ Imp. Hover Unit destroyed. 00575_ Acquired 5 matter. Map ----- +----------------------------------------------------+ | ?????????????????????#+###+####### #???????????? | | ?????????????????????????????????# #???????????? | | ????????????????????????????????## ##??????????? | | ????????????????????????????????# #??????????? | | ????????????????????????????????# #??????????? | | ????????????????????????????????# + ?????????? | | ????????????????????????????????# # ????????? | | ????????????????????????????????# # ???????? | | ?????????????????################# ######??????? | | ???????????????? #?????????? | | ???????????????? #?????????? | | ???????????????? ^ ^ #?????????? | | ???????????????????##########^ "" #?????????? | | ????????????????????????????# """ #?????????? | | ????????????????????????????#^ "" #?????????? | | ????????????????????????????# #####?????? | | ????????????????????######### ???? | | ????????????????????# ## ???? | | ????????????????????# T ## ???? | | ????????????????????# ## #####/#######????? | | ????????????????????# ## #???? ?????????? | | ????????????????????# ## #????? """???????? | | ????????????????????# ##g ##?????"""???????? | | ?????????????###########+###g #??????"????????? | | ?????????????# g #???????????????? | | ?????????????# < g @ Y #???????????????? | | ?????????????# / %#???????????????? | | ?????????????####+#### ### #???????????????? | | ?????????????????????# #?#######???????????????? | | ?????????????????????# #???????????????????????? | | ?????????????????????# #???????????????????????? | | ????????????????????? ???????????????????????? | | ????????????????????# ??????????????????????? | | ????????????????????# ??????????????????????? | | ????????????????????# ?????????????????????? | | ????????????????????# ##?????????????????????? | | ????????????????????#######??????????????????????? | | ?????????????????????????????????????????????????? | | ?????????????????????????????????????????????????? | | ?????????????????????????????????????????????????? | | ?????????????????????????????????????????????????? | | ?????????????????????????????????????????????????? | | ?????????????????????????????????????????????????? | | ?????????????????????????????????????????????????? | | ?????????????????????????????????????????????????? | | ?????????????????????????????????????????????????? | | ?????????????????????????????????????????????????? | | ?????????????????????????????????????????????????? | | ?????????????????????????????????????????????????? | | ?????????????????????????????????????????????????? | +----------------------------------------------------+ Best States ------------- Heat Dissipation 28 Energy Generation 10 Energy Capacity 250 Matter Stores 300 Matter Capacity 300 Sight Range 16 Terrain Scan Density 10 Armor Coverage 150 Evasion (%) 62 Item Schematics ----------------- Imp. Hover Unit | -9/Materials | Scanalyzed Robot Schematics ------------------ None Fabricated ------------ Nothing Alien Tech Used ----------------- None Achievements -------------- None Challenges ------------ None Game ------ Seed MagneticFrostKatana Manual? 0 Play Time 00:11:34 Cumulative 120.5 hours Start 2023.05.02 @ 23:25:04 End 2023.05.02 @ 23:34:15 Sessions 1 Manual Loads 0 Difficulty Rogue Special Mode None Game No. 104 Rogue 104 Adventurer 0 Explorer 0 Win Type - Total 1 Types 1/0/0/0/0/0/0/0/0 Lore% 38 Gallery% 53 Achievement% 46 Wizard Run 0 Options --------- ASCII 0 Keyboard 0 Movement Numpad Keybinds 0 Fullscreen 1 Font 18/SmallcapsGlow Map View 76x50 Tactical HUD 1 Map Filters NONE Filters NONE Steam 1 RUN: 8d302081-b54d-4aeb-8a93-44933a7c6f30